fUST/lending_fUST_20251120
["ID","MTS","AMOUNT","RATE_DAILY","PERIOD"]
[394509044,1763647855490,-4128.07243445,0.00036972,30]
[394509045,1763647855499,-1137.07750453,0.00036986,15]
[394509046,1763647855509,-1137.07750453,0.00036986,15]
[394509047,1763647855519,-1137.07750453,0.00036986,15]
[394509048,1763647855529,-1137.07750453,0.00036986,15]
[394509049,1763647855539,-1137.07750453,0.00036986,15]
[394509050,1763647855549,-1137.07750453,0.00036986,15]
[394509051,1763647855559,-1137.07750453,0.00036986,15]
[394509052,1763647855570,-1137.07750453,0.00036986,15]
[394509053,1763647855579,-1137.07750453,0.00036986,15]
[394509054,1763647855588,-1137.07750453,0.00036986,15]
[394509055,1763647855599,-1137.07750453,0.00036986,15]
[394509056,1763647855609,-1137.07750453,0.00036986,15]
[394509057,1763647855618,-1137.07750453,0.00036986,15]
[394509058,1763647855628,-1137.07750453,0.00036986,15]
[394509059,1763647855638,-1137.07750453,0.00036986,15]
[394509060,1763647855648,-1137.07750453,0.00036986,15]
[394509061,1763647855658,-1137.07750453,0.00036986,15]
[394509062,1763647855668,-1137.07750453,0.00036986,15]
[394509063,1763647855677,-1137.07750453,0.00036986,15]
[394509064,1763647855686,-1137.07750453,0.00036986,15]
[394509065,1763647855695,-1137.07750453,0.00036986,15]
[394509066,1763647855704,-1137.07750453,0.00036986,15]
[394509067,1763647855714,-1137.07750453,0.00036986,15]
[394509068,1763647855725,-1137.07750453,0.00036986,15]
[394509069,1763647855734,-1137.07750453,0.00036986,15]
[394509070,1763647855743,-1137.07750453,0.00036986,15]
[394509071,1763647855752,-1137.07750453,0.00036986,15]
[394509072,1763647855761,-1137.07750453,0.00036986,15]
[394509073,1763647855770,-1137.07750453,0.00036986,15]
[394509074,1763647855779,-1137.07750453,0.00036986,15]
[394509075,1763647855788,-1137.07750453,0.00036986,15]
[394509076,1763647855798,-1137.07750453,0.00036986,15]
[394509077,1763647855807,-1137.07750453,0.00036986,15]
[394509078,1763647855816,-1137.07750453,0.00036986,15]
[394509079,1763647855825,-1137.07750453,0.00036986,15]
[394509080,1763647855835,-1137.07750453,0.00036986,15]
[394509081,1763647855843,-1137.07750453,0.00036986,15]
[394509082,1763647855851,-1137.07750453,0.00036986,15]
[394509083,1763647855861,-1137.07750453,0.00036986,15]
[394509084,1763647855870,-1137.07750453,0.00036986,15]
[394509085,1763647855881,-1137.07750453,0.00036986,15]
[394509086,1763647855891,-1137.07750453,0.00036986,15]
[394509087,1763647855901,-1137.07750453,0.00036986,15]
[394509088,1763647855910,-1137.07750453,0.00036986,15]
[394509089,1763647855920,-1137.07750453,0.00036986,15]
[394509090,1763647855929,-1137.07750453,0.00036986,15]
[394509091,1763647855938,-1137.07750453,0.00036986,15]
[394509092,1763647855949,-1137.07750453,0.00036986,15]
[394509093,1763647855959,-1137.07750453,0.00036986,15]
[394509094,1763647855970,-1137.07750453,0.00036986,15]
[394509095,1763647855980,-1137.07750453,0.00036986,15]
[394509096,1763647855990,-1137.07750453,0.00036986,15]
[394509097,1763647855999,-1137.07750453,0.00036986,15]
[394509098,1763647856009,-1137.07750453,0.00036986,15]
[394509099,1763647856019,-1137.07750453,0.00036986,15]
[394509100,1763647856028,-1137.07750453,0.00036986,15]
[394509101,1763647856038,-1137.07750453,0.00036986,15]
[394509102,1763647856047,-1137.07750453,0.00036986,15]
[394509103,1763647856056,-1137.07750453,0.00036986,15]
[394509104,1763647856065,-1137.07750453,0.00036986,15]
[394509105,1763647856075,-1137.07750453,0.00036986,15]
[394509106,1763647856083,-1137.07750453,0.00036986,15]
[394509107,1763647856093,-1137.07750453,0.00036986,15]
[394509108,1763647856102,-1137.07750453,0.00036986,15]
[394509109,1763647856111,-1137.07750453,0.00036986,15]
[394509110,1763647856121,-1137.07750453,0.00036986,15]
[394509111,1763647856130,-1137.07750453,0.00036986,15]
[394509112,1763647856139,-1137.07750453,0.00036986,15]
[394509113,1763647856147,-1137.07750453,0.00036986,15]
[394509114,1763647856157,-1137.07750453,0.00036986,15]
[394509115,1763647856166,-1137.07750453,0.00036986,15]
[394509116,1763647856175,-1099.17492105,0.00036986,15]
[394509117,1763647856183,-1099.17492105,0.00036986,15]
[394509118,1763647856191,-1099.17492105,0.00036986,15]
[394509119,1763647856200,-1099.17492105,0.00036986,15]
[394509120,1763647856210,-1099.17492105,0.00036986,15]
[394509121,1763647856221,-1099.17492105,0.00036986,15]
[394509122,1763647856231,-1099.17492105,0.00036986,15]
[394509123,1763647856240,-1099.17492105,0.00036986,15]
[394509124,1763647856250,-1099.17492105,0.00036986,15]
[394509125,1763647856259,-1099.17492105,0.00036986,15]
[394509126,1763647856268,-1099.17492105,0.00036986,15]
[394509127,1763647856277,-1099.17492105,0.00036986,15]
[394509128,1763647856287,-1099.17492105,0.00036986,15]
[394509129,1763647856296,-1099.17492105,0.00036986,15]
[394509130,1763647856305,-1099.17492105,0.00036986,15]
[394509131,1763647856314,-1099.17492105,0.00036986,15]
[394509132,1763647856323,-1099.17492105,0.00036986,15]
[394509133,1763647856332,-1648.76238158,0.00036986,15]
[394509134,1763647856341,-1099.17492105,0.00036986,15]
[394509135,1763647856350,-1099.17492105,0.00036986,15]
[394509136,1763647856360,-1099.17492105,0.00036986,15]
[394509137,1763647856369,-1648.76238158,0.00036986,15]
[394509138,1763647856378,-1099.17492106,0.00036986,15]
[394509139,1763647856387,-1099.17492106,0.00036986,15]
[394509140,1763647856397,-1099.17492106,0.00036986,15]
[394509141,1763647856406,-1099.17492105,0.00036986,15]
[394509142,1763647856416,-1099.17492105,0.00036986,15]
[394509143,1763647856426,-1099.17492105,0.00036986,15]
[394509144,1763647856435,-1099.17492105,0.00036986,15]
[394509145,1763647856445,-300.0,0.00036986,5]
[394509146,1763647856454,-2039.89920007,0.00037,2]
[394509147,1763647856463,-500.0,0.00037,30]
[394509148,1763647856474,-1000.0,0.00037,120]
[394509149,1763647856483,-279.11,0.00037066,2]
[394509150,1763647856493,-4128.07243445,0.0003709,30]
[394509151,1763647856503,-650.0,0.0003714,5]
[394509152,1763647856512,-507.51170353,0.00037233,30]
[394509153,1763647856521,-902.2,0.0003726,2]
[394509154,1763647856530,-575.95293699,0.0003726,5]
[394509155,1763647856540,-4128.07243445,0.00037327,30]
[394509156,1763647856549,-220.84599879,0.00037534,30]
[394509157,1763647856559,-156.0,0.000376,120]
[394509158,1763647856568,-4128.07243445,0.0003765,30]
[394509159,1763647856578,-750.0,0.00037688,5]
[394509160,1763647856587,-220.84599879,0.00037699,30]
[394509161,1763647856596,-1020.01983383,0.000378,2]
[394509162,1763647856606,-500.0,0.0003781,30]
[394509163,1763647856615,-160.0,0.00037849,8]
[394509164,1763647856625,-178.02019774,0.00037849,5]
[394509165,1763647856634,-800.0,0.00037853,7]
[394509166,1763647856643,-4128.07243445,0.00037855,30]
[394509167,1763647856653,-220.84599879,0.0003789,30]
[394509168,1763647856662,-641.36701065,0.00037913,120]
[394509169,1763647856672,-40276.87166815,0.00038,2]
[394509170,1763647856682,-12713.611025,0.00038,2]
[394509171,1763647856691,-150.0,0.00038,20]
[394509172,1763647856701,-326.0,0.00038,120]
[394509173,1763647856711,-500.0,0.00038,10]
[394509174,1763647856720,-500.0,0.00038,30]
[394509175,1763647856731,-220.84599879,0.00038055,30]
[394509176,1763647856740,-800.0,0.00038085,7]
[394509177,1763647856750,-4128.07243445,0.00038105,30]
[394509178,1763647856759,-800.0,0.00038145,7]
[394509179,1763647856769,-800.0,0.00038169,7]
[394509180,1763647856778,-500.0,0.00038189,7]
[394509181,1763647856787,-800.0,0.00038211,7]
[394509182,1763647856796,-800.0,0.0003823,7]
[394509183,1763647856806,-800.0,0.00038231,7]
[394509184,1763647856815,-850.0,0.00038236,5]
[394509185,1763647856824,-220.84599879,0.00038247,30]
[394509186,1763647856834,-800.0,0.00038269,7]
[394509187,1763647856843,-800.0,0.00038315,7]
[394509188,1763647856853,-620.0,0.0003835,3]
[394509189,1763647856863,-200.0,0.00038356,3]
[394509190,1763647856872,-902.2,0.00038356,2]
[394509191,1763647856882,-209.19821341,0.00038356,2]
[394509192,1763647856891,-813.26,0.00038356,2]
[394509193,1763647856901,-1000.0,0.00038356,2]
[394509194,1763647856910,-1000.0,0.00038356,2]
[394509195,1763647856920,-500.0,0.00038356,2]
[394509196,1763647856929,-1000.0,0.00038356,2]
[394509197,1763647856939,-500.0,0.00038356,2]
[394509198,1763647856950,-500.0,0.00038356,2]
[394509199,1763647856959,-151.0,0.00038356,2]
[394509200,1763647856968,-500.0,0.00038356,2]
[394509201,1763647856979,-500.0,0.00038356,2]
[394509202,1763647856988,-150.0,0.00038356,2]
[394509203,1763647856998,-300.0,0.00038356,2]
[394509204,1763647857007,-450.0,0.00038356,2]
[394509205,1763647857017,-600.0,0.00038356,2]
[394509206,1763647857027,-750.0,0.00038356,2]
[394509207,1763647857036,-670.50174093,0.00038356,2]
[394509208,1763647857049,-500.0,0.00038356,30]
[394509209,1763647857059,-150.0,0.00038356,5]
[394509210,1763647857071,-800.0,0.0003836,7]
[394509211,1763647857080,-500.0,0.00038383,2]
[394509212,1763647857090,-500.0,0.00038383,2]
[394509213,1763647857100,-500.0,0.00038383,2]
[394509214,1763647857111,-254.3822629,0.00038383,2]
[394509215,1763647857120,-500.0,0.00038383,2]
[394509216,1763647857129,-800.0,0.00038387,7]
[394509217,1763647857140,-500.0,0.00038411,2]
[394509218,1763647857149,-500.0,0.00038411,2]
[394509219,1763647857159,-500.0,0.00038411,2]
[394509220,1763647857169,-254.08719922,0.00038411,2]
[394509221,1763647857179,-4128.07243445,0.00038411,30]
[394509222,1763647857188,-500.0,0.00038438,2]
[394509223,1763647857198,-500.0,0.00038438,2]
[394509224,1763647857209,-500.0,0.00038438,2]
[394509225,1763647857221,-220.84599879,0.00038438,30]
[394509226,1763647857232,-500.0,0.00038466,2]
[394509227,1763647857241,-500.0,0.00038466,2]
[394509228,1763647857251,-500.0,0.00038466,2]
[394509229,1763647857262,-500.0,0.00038493,2]
[394509230,1763647857273,-500.0,0.00038493,2]
[394509231,1763647857283,-500.0,0.00038493,2]
[394509232,1763647857294,-800.0,0.00038517,7]
[394509233,1763647857303,-217.12931284,0.0003852,2]
[394509234,1763647857312,-441.68803233,0.0003852,2]
[394509235,1763647857322,-220.84599879,0.00038603,30]
[394509236,1763647857331,-800.0,0.00038608,7]
[394509237,1763647857340,-348.88,0.0003861,2]
[394509238,1763647857350,-200.0,0.0003863,3]
[394509239,1763647857359,-813.26,0.0003863,2]
[394509240,1763647857369,-571.57895739,0.0003863,2]
[394509241,1763647857378,-1000.0,0.0003863,2]
[394509242,1763647857387,-1000.0,0.0003863,2]
[394509243,1763647857397,-500.0,0.0003863,2]
[394509244,1763647857406,-500.0,0.0003863,30]
[394509245,1763647857415,-800.0,0.00038722,7]
[394509246,1763647857425,-4128.07243445,0.00038775,30]
[394509247,1763647857434,-468.40786805,0.00038784,5]
[394509248,1763647857444,-800.0,0.00038786,7]
[394509249,1763647857454,-220.84599879,0.00038795,30]
[394509250,1763647857463,-800.0,0.0003884,7]
[394509251,1763647857475,-800.0,0.0003884,7]
[394509252,1763647857484,-800.0,0.00038858,7]
[394509253,1763647857494,-800.0,0.00038862,7]
[394509254,1763647857503,-800.0,0.00038881,7]
[394509255,1763647857513,-800.0,0.00038889,7]
[394509256,1763647857523,-800.0,0.00038889,7]
[394509257,1763647857532,-40000.0,0.000389,30]
[394509258,1763647857542,-200.0,0.00038904,3]
[394509259,1763647857552,-813.26,0.00038904,2]
[394509260,1763647857564,-1000.0,0.00038904,2]
[394509261,1763647857573,-1000.0,0.00038904,2]
[394509262,1763647857582,-281.1695909,0.00038904,2]
[394509263,1763647857592,-500.0,0.00038904,30]
[394509264,1763647857602,-800.0,0.00038918,7]
[394509265,1763647857613,-800.0,0.00038938,7]
[394509266,1763647857623,-800.0,0.0003896,7]
[394509267,1763647857633,-4128.07243449,0.00038984,30]
[394509268,1763647857741,-220.84599879,0.00038986,30]
[394509269,1763647857752,-747.13,0.00039,30]
[394509270,1763647857762,-700.0,0.00039,120]
[394509271,1763647857772,-553.08,0.00039,7]
[394509272,1763647857782,-164.0,0.00039,45]
[394509273,1763647857792,-2356.88,0.00039,14]
[394509274,1763647857801,-1000.0,0.00039,120]
[394509275,1763647857811,-800.0,0.00039001,7]
[394509276,1763647857820,-500.0,0.00039011,7]
[394509277,1763647857830,-800.0,0.00039033,7]
[394509278,1763647857840,-800.0,0.000391,7]
[394509279,1763647857849,-493.43581752,0.00039107,7]
[394509280,1763647857859,-220.84599879,0.00039151,30]
[394509281,1763647857868,-2183.02305047,0.00039177,30]
[394509282,1763647857877,-200.0,0.00039178,3]
[394509283,1763647857888,-813.26,0.00039178,2]
[394509284,1763647857897,-1000.0,0.00039178,2]
[394509285,1763647857906,-1000.0,0.00039178,2]
[394509286,1763647857918,-500.0,0.00039178,30]
[394509287,1763647857927,-250.0,0.00039178,5]
[394509288,1763647857937,-800.0,0.00039212,7]
[394509289,1763647857947,-800.0,0.00039276,7]
[394509290,1763647857956,-232.08671869,0.00039295,120]
[394509291,1763647857965,-220.84599879,0.00039342,30]
[394509292,1763647857977,-800.0,0.00039351,7]
[394509293,1763647857986,-800.0,0.00039361,7]
[394509294,1763647857996,-800.0,0.00039384,7]
[394509295,1763647858006,-166.0,0.00039395,14]
[394509296,1763647858015,-162.0,0.00039395,14]
[394509297,1763647858025,-162.0,0.00039395,14]
[394509298,1763647858034,-162.0,0.00039395,14]
[394509299,1763647858044,-331.0,0.00039395,14]
[394509300,1763647858052,-162.0,0.00039395,14]
[394509301,1763647858062,-162.0,0.00039395,14]
[394509302,1763647858072,-166.0,0.00039395,14]
[394509303,1763647858083,-162.0,0.00039395,14]
[394509304,1763647858092,-166.0,0.00039395,14]
[394509305,1763647858102,-166.0,0.00039395,14]
[394509306,1763647858111,-152.0,0.00039395,14]
[394509307,1763647858122,-162.0,0.00039395,14]
[394509308,1763647858131,-2000.0,0.00039395,20]
[394509309,1763647858140,-172.0,0.00039395,14]
[394509310,1763647858150,-151.51510026,0.00039395,14]
[394509311,1763647858159,-333.0,0.00039395,14]
[394509312,1763647858168,-172.0,0.00039395,14]
[394509313,1763647858177,-152.0,0.00039395,14]
[394509314,1763647858187,-152.0,0.00039395,14]
[394509315,1763647858196,-152.0,0.00039395,14]
[394509316,1763647858206,-159.17946028,0.00039395,14]
[394509317,1763647858220,-152.0,0.00039395,14]
[394509318,1763647858232,-79392.23986651,0.00039395,2]
[394509319,1763647858242,-22851.62238158,0.00039395,2]
[394509320,1763647858252,-52149.9194303,0.00039395,2]
[394509321,1763647858262,-21752.10518918,0.00039395,2]
[394509322,1763647858271,-112907.95864901,0.00039395,2]
[394509323,1763647858281,-511.89191249,0.00039395,2]
[394509324,1763647858292,-180.82015347,0.00039395,2]
[394509325,1763647858301,-471.82327094,0.00039395,2]
[394509326,1763647858311,-30697.90879235,0.00039395,2]
[394509327,1763647858320,-995.35425107,0.00039395,2]
[394509328,1763647858330,-190.74069869,0.00039395,2]
[394509329,1763647858339,-1408.53245728,0.00039395,2]
[394509330,1763647858349,-5944.85286871,0.00039395,2]
[394509331,1763647858358,-10770.13198614,0.00039395,2]
[394509332,1763647858367,-656.60066436,0.00039395,2]
[394509333,1763647858376,-204.65683237,0.00039395,2]
[394509334,1763647858385,-2920.0,0.00039395,2]
[394509335,1763647858395,-203.02014981,0.00039395,2]
[394509336,1763647858404,-3173.05141678,0.00039395,2]
[394509337,1763647858413,-367.66246295,0.00039395,2]
[394509338,1763647858422,-167.95482965,0.00039395,2]
[394509339,1763647858431,-171965.64810176,0.00039395,2]
[394509340,1763647858440,-151.59055928,0.00039395,2]
[394509341,1763647858450,-260.68574083,0.00039395,2]
[394509342,1763647858459,-58500.0,0.00039395,2]
[394509343,1763647858468,-1674.24157947,0.00039395,2]
[394509344,1763647858478,-618.0,0.00039395,2]
[394509345,1763647858487,-326.35820496,0.00039395,2]
[394509346,1763647858496,-1174.5054795,0.00039395,15]
[394509347,1763647858505,-150.0,0.00039395,2]
[394509348,1763647858514,-80577.67370809,0.00039395,5]
[394509349,1763647858524,-3000.0,0.00039395,3]
[394509350,1763647858533,-1015.67889353,0.00039395,7]
[394509351,1763647858543,-388.04635094,0.00039395,2]
[394509352,1763647858552,-29622.71358464,0.00039395,2]
[394509353,1763647858561,-2976.87575999,0.00039395,2]
[394509354,1763647858571,-2141.07516295,0.00039395,2]
[394509355,1763647858580,-10288.88563484,0.00039395,10]
[394509356,1763647858589,-1008.72970604,0.00039395,7]
[394509357,1763647858599,-24291.66699489,0.00039395,7]
[394509358,1763647858608,-6620.59544148,0.00039395,2]
[394509359,1763647858618,-3796.08246068,0.00039395,2]
[394509360,1763647858627,-186.83874155,0.00039395,2]
[394509361,1763647858637,-158.0,0.00039395,10]
[394509362,1763647858646,-101087.68188634,0.00039395,7]
[394509363,1763647858660,-156.08445185,0.00039395,2]
[394509364,1763647858669,-314.99437902,0.00039395,7]
[394509365,1763647858679,-45000.0,0.00039395,2]
[394509366,1763647858688,-3916.12851502,0.00039395,2]
[394509367,1763647858697,-2109.94608693,0.00039395,2]
[394509368,1763647858708,-329.83753766,0.00039395,2]
[394509369,1763647858718,-294.37212889,0.00039395,2]
[394509370,1763647858728,-642.75688416,0.00039395,2]
[394509371,1763647858737,-1373.62807822,0.00039395,2]
[394509372,1763647858747,-157.97548846,0.00039395,2]
[394509373,1763647858756,-708.63132769,0.00039395,2]
[394509374,1763647858765,-6351.44075026,0.00039395,2]
[394509375,1763647858774,-158.98345186,0.00039395,2]
[394509376,1763647858783,-1732.08639625,0.00039395,2]
[394509377,1763647858792,-2094.42018087,0.00039395,2]
[394509378,1763647858802,-7544.85211264,0.00039395,2]
[394509379,1763647858811,-1205.04373322,0.00039395,2]
[394509380,1763647858820,-11484.60477465,0.00039395,7]
[394509381,1763647858830,-151505.46904268,0.00039395,7]
[394509382,1763647858839,-6344.98276229,0.00039395,7]
[394509383,1763647858849,-150.0,0.00039395,2]
[394509384,1763647858858,-500.0,0.00039395,2]
[394509385,1763647858867,-500.0,0.00039395,2]
[394509386,1763647858876,-500.0,0.00039395,2]
[394509387,1763647858885,-500.0,0.00039395,2]
[394509388,1763647858894,-515.77411646,0.00039395,2]
[394509389,1763647858902,-500.0,0.00039395,7]
[394509390,1763647858910,-500.0,0.00039395,7]
[394509391,1763647858918,-503.01162484,0.00039395,7]
[394509392,1763647858927,-500.0,0.00039395,2]
[394509393,1763647858938,-501.47485912,0.00039395,2]
[394509394,1763647858948,-500.0,0.00039395,10]
[394509395,1763647858959,-500.0,0.00039395,10]
[394509396,1763647858968,-500.0,0.00039395,10]
[394509397,1763647858978,-500.0,0.00039395,10]
[394509398,1763647858987,-500.0,0.00039395,10]
[394509399,1763647858996,-500.0,0.00039395,10]
[394509400,1763647859005,-500.0,0.00039395,10]
[394509401,1763647859014,-500.0,0.00039395,10]
[394509402,1763647859023,-500.0,0.00039395,10]
[394509403,1763647859031,-500.0,0.00039395,10]
[394509404,1763647859041,-207.54780508,0.00039395,10]
[394509405,1763647859051,-625.68597842,0.00039395,14]
[394509406,1763647859060,-500.0,0.00039395,2]
[394509407,1763647859070,-500.0,0.00039395,2]
[394509408,1763647859080,-500.0,0.00039395,2]
[394509409,1763647859090,-412.76683512,0.00039395,2]
[394509410,1763647859100,-500.0,0.00039395,7]
[394509411,1763647859110,-500.0,0.00039395,7]
[394509412,1763647859120,-500.0,0.00039395,7]
[394509413,1763647859130,-264.85356766,0.00039395,7]
[394509414,1763647859140,-250.0,0.00039395,10]
[394509415,1763647859150,-250.0,0.00039395,10]
[394509416,1763647859160,-250.0,0.00039395,10]
[394509417,1763647859171,-458.454966,0.00039395,10]
[394509418,1763647859182,-1121.28,0.00039395,15]
[394509419,1763647859193,-1121.28,0.00039395,15]
[394509420,1763647859203,-1121.28,0.00039395,15]
[394509421,1763647859216,-1121.28,0.00039395,15]
[394509422,1763647859228,-1121.28,0.00039395,15]
[394509423,1763647859238,-1121.28,0.00039395,15]
[394509424,1763647859248,-1121.28,0.00039395,15]
[394509425,1763647859259,-1121.28,0.00039395,15]
[394509426,1763647859270,-1121.28,0.00039395,15]
[394509427,1763647859280,-1121.28,0.00039395,15]
[394509428,1763647859291,-1121.28,0.00039395,15]
[394509429,1763647859302,-1121.28,0.00039395,15]
[394509430,1763647859312,-1121.28,0.00039395,15]
[394509431,1763647859323,-1121.28,0.00039395,15]
[394509432,1763647859332,-1121.28,0.00039395,15]
[394509433,1763647859343,-1121.28,0.00039395,15]
[394509434,1763647859363,-1121.28,0.00039395,15]
[394509435,1763647859375,-1121.28,0.00039395,15]
[394509436,1763647859386,-1121.28,0.00039395,15]
[394509437,1763647859395,-1121.28,0.00039395,15]
[394509438,1763647859403,-1121.28,0.00039395,15]
[394509439,1763647859413,-1121.28,0.00039395,15]
[394509440,1763647859423,-1121.28,0.00039395,15]
[394509441,1763647859432,-1121.44,0.00039395,15]
[394509442,1763647859442,-4216.31,0.00039395,3]
[394509443,1763647859451,-4216.31,0.00039395,3]
[394509444,1763647859468,-4216.31,0.00039395,3]
[394509445,1763647859479,-4216.31,0.00039395,3]
[394509446,1763647859489,-4216.31,0.00039395,3]
[394509447,1763647859498,-4216.31,0.00039395,3]
[394509448,1763647859508,-4216.31,0.00039395,3]
[394509449,1763647859517,-4216.31,0.00039395,3]
[394509450,1763647859527,-4216.31,0.00039395,3]
[394509451,1763647859536,-4216.31,0.00039395,3]
[394509452,1763647859547,-4216.31,0.00039395,3]
[394509453,1763647859557,-4216.31,0.00039395,3]
[394509454,1763647859567,-4216.31,0.00039395,3]
[394509455,1763647859576,-4216.31,0.00039395,3]
[394509456,1763647859586,-4216.31,0.00039395,3]
[394509457,1763647859596,-4216.31,0.00039395,3]
[394509458,1763647859605,-4216.31,0.00039395,3]
[394509459,1763647859615,-4216.31,0.00039395,3]
[394509460,1763647859625,-4216.31,0.00039395,3]
[394509461,1763647859634,-4216.31,0.00039395,3]
[394509462,1763647859644,-4216.31,0.00039395,3]
[394509463,1763647859658,-4216.31,0.00039395,3]
[394509464,1763647859673,-4216.31,0.00039395,3]
[394509465,1763647859683,-4216.4279781,0.00039395,3]
[394509466,1763647859693,-877.43,0.00039395,3]
[394509467,1763647859702,-877.43,0.00039395,3]
[394509468,1763647859711,-877.43,0.00039395,3]
[394509469,1763647859721,-877.43,0.00039395,3]
[394509470,1763647859733,-877.43,0.00039395,3]
[394509471,1763647859743,-877.43,0.00039395,3]
[394509472,1763647859755,-877.43,0.00039395,3]
[394509473,1763647859765,-877.43,0.00039395,3]
[394509474,1763647859775,-877.43,0.00039395,3]
[394509475,1763647859786,-877.43,0.00039395,3]
[394509476,1763647859796,-877.43,0.00039395,3]
[394509477,1763647859806,-877.43,0.00039395,3]
[394509478,1763647859817,-877.43,0.00039395,3]
[394509479,1763647859828,-877.43,0.00039395,3]
[394509480,1763647859853,-877.43,0.00039395,3]
[394509481,1763647859869,-877.43,0.00039395,3]
[394509482,1763647859885,-877.43,0.00039395,3]
[394509483,1763647859896,-877.43,0.00039395,3]
[394509484,1763647859908,-877.43,0.00039395,3]
[394509485,1763647859920,-877.43,0.00039395,3]
[394509486,1763647859931,-877.43,0.00039395,3]
[394509487,1763647859943,-877.43,0.00039395,3]
[394509488,1763647859957,-877.43,0.00039395,3]
[394509489,1763647859971,-877.51865773,0.00039395,3]
[394509490,1763647860000,-514.54,0.00039395,14]
[394509491,1763647860011,-514.54,0.00039395,14]
[394509492,1763647860023,-514.54,0.00039395,14]
[394509493,1763647860034,-514.54,0.00039395,14]
[394509494,1763647860046,-514.54,0.00039395,14]
[394509495,1763647860069,-514.54,0.00039395,14]
[394509496,1763647860083,-514.54,0.00039395,14]
[394509497,1763647860095,-514.54,0.00039395,14]
[394509498,1763647860108,-514.54,0.00039395,14]
[394509499,1763647860120,-514.54,0.00039395,14]
[394509500,1763647860132,-514.54,0.00039395,14]
[394509501,1763647860143,-514.54,0.00039395,14]
[394509502,1763647860155,-514.54,0.00039395,14]
[394509503,1763647860169,-514.54,0.00039395,14]
[394509504,1763647860180,-514.54,0.00039395,14]
[394509505,1763647860191,-514.54,0.00039395,14]
[394509506,1763647860204,-514.54,0.00039395,14]
[394509507,1763647860218,-514.54,0.00039395,14]
[394509508,1763647860232,-514.54,0.00039395,14]
[394509509,1763647860244,-514.54,0.00039395,14]
[394509510,1763647860256,-514.54,0.00039395,14]
[394509511,1763647860267,-514.54,0.00039395,14]
[394509512,1763647860280,-514.54,0.00039395,14]
[394509513,1763647860291,-514.76605132,0.00039395,14]
[394509514,1763647860305,-515.23,0.00039395,7]
[394509515,1763647860317,-515.23,0.00039395,7]
[394509516,1763647860329,-515.23,0.00039395,7]
[394509517,1763647860340,-515.23,0.00039395,7]
[394509518,1763647860353,-515.23,0.00039395,7]
[394509519,1763647860474,-515.23,0.00039395,7]
[394509520,1763647860489,-515.23,0.00039395,7]
[394509521,1763647860512,-515.23,0.00039395,7]
[394509522,1763647860524,-515.23,0.00039395,7]
[394509523,1763647860535,-515.23,0.00039395,7]
[394509524,1763647860548,-515.23,0.00039395,7]
[394509525,1763647860560,-515.23,0.00039395,7]
[394509526,1763647860571,-515.23,0.00039395,7]
[394509527,1763647860583,-515.23,0.00039395,7]
[394509528,1763647860595,-515.23,0.00039395,7]
[394509529,1763647860606,-515.23,0.00039395,7]
[394509530,1763647860617,-515.23,0.00039395,7]
[394509531,1763647860628,-515.23,0.00039395,7]
[394509532,1763647860639,-515.23,0.00039395,7]
[394509533,1763647860650,-515.23,0.00039395,7]
[394509534,1763647860661,-515.23,0.00039395,7]
[394509535,1763647860673,-515.23,0.00039395,7]
[394509536,1763647860685,-515.23,0.00039395,7]
[394509537,1763647860696,-515.30477912,0.00039395,7]
[394509538,1763647860707,-500.0,0.00039395,10]
[394509539,1763647860718,-500.0,0.00039395,10]
[394509540,1763647860729,-500.0,0.00039395,10]
[394509541,1763647860740,-500.0,0.00039395,10]
[394509542,1763647860750,-500.0,0.00039395,10]
[394509543,1763647860761,-500.0,0.00039395,10]